{"text_format":"1","workbook":"xlsx","n_sheets":10,"sheets":["Sheet1","2022","2023","2024","2025","2026","2027","2028","2029","YearlyChart"],"not_rendered":{"charts":10,"images":2,"macros":1,"external_links":0,"defined_names":0,"comments":8,"pivot_tables":0},"unopened":[],"bounds":{"document_bytes":16777216,"sheet_cells":100000,"rows_first":2000,"rows_last":500,"rows_between":2000,"halvings":0,"cell_chars":16384,"cell_head_chars":4096},"cells_cut":0,"cells_raw":0,"read":"whole","date_system":"1900"}

{"sheet":"Sheet1","index":0,"n_rows":2,"n_cols":2,"rows_kept":2,"cut":false,"hidden":false,"merged":[[0,1,0,7],[1,1,1,7]]}
[null,"WATER USE EFFICIENCY "]
[null,"DATA COLLECTION TOOL"]

{"sheet":"2022","index":1,"n_rows":69,"n_cols":17,"rows_kept":69,"cut":false,"hidden":false,"merged":[[6,0,6,1],[2,0,2,1],[2,2,2,8],[2,10,2,13],[4,0,4,1],[5,0,5,1],[19,0,19,1],[7,0,7,1],[7,16,9,19],[10,0,10,1],[11,0,11,1],[12,0,12,1],[13,0,13,1],[14,0,14,1],[15,0,15,1],[16,0,16,1],[17,0,17,1],[18,0,18,1],[28,16,30,19],[29,0,29,1],[30,0,30,1],[20,0,20,1],[21,0,21,1],[22,0,22,1],[23,0,23,1],[24,0,24,1],[25,0,25,1],[34,1,42,14],[67,0,67,1],[68,0,68,1],[26,0,26,1],[27,0,27,1],[28,0,28,1]]}
[]
["Distribution System Leakage (DSL) Data Collection Tool - Reporting Year 2022"]
["Instructions",null,"Report Units in gallons",null,null,null,null,null,null,null,"Scroll down to see Monthly Chart for this year"]
["Water Volume Entering Distribution System:"]
[null,null,"JAN","FEB","MAR","APRIL","MAY","JUNE","JULY","AUG","SEPT","OCT ","NOV","DEC","TOTAL"]
["Total Volume Produced",null,null,null,null,null,null,null,null,null,null,null,null,null,{"$f":"SUM(C6:N6)","v":0}]
["Total Volume Purchased",null,null,null,null,null,null,null,null,null,null,null,null,null,{"$f":"SUM(C7:N7)","v":0}]
["Total Water Produced and Purchased (TP)",null,{"$f":"SUM(C6:C7)","v":0},{"$f":"SUM(D6:D7)","v":0},0,0,0,0,0,0,0,0,0,0,{"$f":"SUM(O6:O7)","v":0},null,"Report this value to DOH each year in the WUE reporting database. Convert to gallons."]
[]
["Total Volume Consumed:"]
[null,null,"JAN","FEB","MAR","APRIL","MAY","JUNE","JULY","AUG","SEPT","OCT ","NOV","DEC","TOTAL"]
["Water Volume Metered (billed and unbilled):",null,{"$f":"SUM(C13:C19)","v":0},{"$f":"SUM(D13:D19)","v":0},0,0,0,0,0,0,0,0,0,0,{"$f":"SUM(C12:N12)","v":0}]
["Single-family Residential","Single -",null,null,null,null,null,null,null,null,null,null,null,null,{"$f":"SUM(C13:N13)","v":0}]
["Multi-family Residential","Total Water Produced and Purchased (TP)",null,null,null,null,null,null,null,null,null,null,null,null,0]
["Industrial/Commercial/ Institutional",null,null,null,null,null,null,null,null,null,null,null,null,null,0]
["Other ","Other",null,null,null,null,null,null,null,null,null,null,null,null,0]
["Other ","Other",null,null,null,null,null,null,null,null,null,null,null,null,0]
["Other ","Other",null,null,null,null,null,null,null,null,null,null,null,null,0]
["Other ","Other",null,null,null,null,null,null,null,null,null,null,null,null,0]
["Exported Water",null,null,null,null,null,null,null,null,null,null,null,null,null,0]
["Estimated Authorized Uses (may be unbilled and unmetered)",null,{"$f":"SUM(C22:C28)","v":0},{"$f":"SUM(D22:D28)","v":0},0,0,0,0,0,0,0,0,0,0,0]
["Utility Flushing/Tank Cleaning",null,null,null,null,null,null,null,null,null,null,null,null,null,0]
["Fire Fighting/Training",null,null,null,null,null,null,null,null,null,null,null,null,null,0]
["Storm or Sewer Cleaning",null,null,null,null,null,null,null,null,null,null,null,null,null,0]
["Other ","Other",null,null,null,null,null,null,null,null,null,null,null,null,0]
["Other ","Other",null,null,null,null,null,null,null,null,null,null,null,null,0]
["Other ","Other",null,null,null,null,null,null,null,null,null,null,null,null,0]
["Other ","Other",null,null,null,null,null,null,null,null,null,null,null,null,0]
["Total Authorized Consumption (AC)",null,{"$f":"SUM(C12,C20,C21)","v":0},{"$f":"SUM(D12,D20,D21)","v":0},0,0,0,0,0,0,0,0,0,0,0,null,"Report this value to DOH each year in the WUE reporting database. Convert to gallons."]
["Total Volume DSL",null,{"$f":"C8-C29","v":0},{"$f":"D8-D29","v":0},{"$f":"E8-E29","v":0},0,0,0,0,0,0,0,0,0,{"$f":"O8-O29","v":0}]
["Percent DSL",null,{"$f":"IF(C8=0,0,(C8-C29)/C8)","v":0},0,0,0,0,0,0,0,0,0,0,0,{"$f":"IF(O8=0,0,(O8-O29)/O8)","v":0}]
[null,null,{"$f":"IF(C31>70%,\"check your numbers!!!\",IF(C31<0,\"check your numbers!!!\",\"\"))","v":""},{"$f":"IF(D31>70%,\"check your numbers!!!\",IF(D31<0,\"check your numbers!!!\",\"\"))","v":""},"","","","","","","","","",{"$f":"IF(N31>70%,\"check your numbers!!!\",IF(N31<0,\"check your numbers!!!\",\"\"))","v":""},{"$f":"IF(O31>70%,\"check your numbers!!!\",IF(O31<0,\"check your numbers!!!\",\"\"))","v":""}]
[]
[null,"Data collection notes (double-click to enter text):"]
[]
[]
[]
[]
[]
[]
[]
[]
[]
[]
[]
[]
[]
[]
[]
[]
[]
[]
[]
[]
[]
[]
[]
[]
[]
[]
[]
[]
[]
[]
[]
[]
[null,null,"JAN","FEB","MAR","APRIL","MAY","JUNE","JULY","AUG","SEPT","OCT ","NOV","DEC"]
["Total Water Produced and Purchased (TP)",null,{"$f":"C8","v":0},0,0,0,0,0,0,0,0,0,0,0]
["Total Authorized Consumption (AC)",null,{"$f":"C29","v":0},0,0,0,0,0,0,0,0,0,0,0]

{"sheet":"2023","index":2,"n_rows":69,"n_cols":17,"rows_kept":69,"cut":false,"hidden":false,"merged":[[14,0,14,1],[2,0,2,1],[2,2,2,8],[4,0,4,1],[5,0,5,1],[6,0,6,1],[7,0,7,1],[7,16,9,19],[10,0,10,1],[11,0,11,1],[12,0,12,1],[13,0,13,1],[28,16,30,19],[29,0,29,1],[30,0,30,1],[34,1,42,14],[26,0,26,1],[2,10,2,13],[67,0,67,1],[68,0,68,1],[27,0,27,1],[28,0,28,1],[15,0,15,1],[16,0,16,1],[17,0,17,1],[18,0,18,1],[19,0,19,1],[20,0,20,1],[21,0,21,1],[22,0,22,1],[23,0,23,1],[24,0,24,1],[25,0,25,1]]}
[]
["Distribution System Leakage (DSL) Data Collection Tool - Reporting Year 2023"]
["Instructions",null,"Report Units in gallons",null,null,null,null,null,null,null,"Scroll down to see Monthly Chart for this year"]
["Water Volume Entering Distribution System:"]
[null,null,"JAN","FEB","MAR","APRIL","MAY","JUNE","JULY","AUG","SEPT","OCT ","NOV","DEC","TOTAL"]
["Total Volume Produced",null,null,null,null,null,null,null,null,null,null,null,null,null,{"$f":"SUM(C6:N6)","v":0}]
["Total Volume Purchased",null,null,null,null,null,null,null,null,null,null,null,null,null,{"$f":"SUM(C7:N7)","v":0}]
["Total Water Produced and Purchased (TP)",null,{"$f":"SUM(C6:C7)","v":0},{"$f":"SUM(D6:D7)","v":0},0,0,0,0,0,0,0,0,0,0,{"$f":"SUM(O6:O7)","v":0},null,"Report this value to DOH each year in the WUE reporting database. Convert to gallons."]
[]
["Total Volume Consumed:"]
[null,null,"JAN","FEB","MAR","APRIL","MAY","JUNE","JULY","AUG","SEPT","OCT ","NOV","DEC","TOTAL"]
["Water Volume Metered (billed and unbilled):",null,{"$f":"SUM(C13:C19)","v":0},{"$f":"SUM(D13:D19)","v":0},0,0,0,0,0,0,0,0,0,0,{"$f":"SUM(C12:N12)","v":0}]
["Single-family Residential","Single -",null,null,null,null,null,null,null,null,null,null,null,null,{"$f":"SUM(C13:N13)","v":0}]
["Multi-family Residential","Total Water Produced and Purchased (TP)",null,null,null,null,null,null,null,null,null,null,null,null,0]
["Industrial/Commercial/ Institutional",null,null,null,null,null,null,null,null,null,null,null,null,null,0]
["Other ","Other",null,null,null,null,null,null,null,null,null,null,null,null,0]
["Other ","Other",null,null,null,null,null,null,null,null,null,null,null,null,0]
["Other ","Other",null,null,null,null,null,null,null,null,null,null,null,null,0]
["Other ","Other",null,null,null,null,null,null,null,null,null,null,null,null,0]
["Exported Water",null,null,null,null,null,null,null,null,null,null,null,null,null,0]
["Estimated Authorized Uses (may be unbilled and unmetered)",null,{"$f":"SUM(C22:C28)","v":0},{"$f":"SUM(D22:D28)","v":0},0,0,0,0,0,0,0,0,0,0,0]
["Utility Flushing/Tank Cleaning",null,null,null,null,null,null,null,null,null,null,null,null,null,0]
["Fire Fighting/Training",null,null,null,null,null,null,null,null,null,null,null,null,null,0]
["Storm or Sewer Cleaning",null,null,null,null,null,null,null,null,null,null,null,null,null,0]
["Other ","Other",null,null,null,null,null,null,null,null,null,null,null,null,0]
["Other ","Other",null,null,null,null,null,null,null,null,null,null,null,null,0]
["Other ","Other",null,null,null,null,null,null,null,null,null,null,null,null,0]
["Other ","Other",null,null,null,null,null,null,null,null,null,null,null,null,0]
["Total Authorized Consumption (AC)",null,{"$f":"SUM(C12,C20,C21)","v":0},{"$f":"SUM(D12,D20,D21)","v":0},0,0,0,0,0,0,0,0,0,0,0,null,"Report this value to DOH each year in the WUE reporting database. Convert to gallons."]
["Total Volume DSL",null,{"$f":"C8-C29","v":0},{"$f":"D8-D29","v":0},{"$f":"E8-E29","v":0},0,0,0,0,0,0,0,0,0,{"$f":"O8-O29","v":0}]
["Percent DSL",null,{"$f":"IF(C8=0,0,(C8-C29)/C8)","v":0},0,0,0,0,0,0,0,0,0,0,0,{"$f":"IF(O8=0,0,(O8-O29)/O8)","v":0}]
[null,null,{"$f":"IF(C31>70%,\"check your numbers!!!\",IF(C31<0,\"check your numbers!!!\",\"\"))","v":""},{"$f":"IF(D31>70%,\"check your numbers!!!\",IF(D31<0,\"check your numbers!!!\",\"\"))","v":""},"","","","","","","","","",{"$f":"IF(N31>70%,\"check your numbers!!!\",IF(N31<0,\"check your numbers!!!\",\"\"))","v":""},{"$f":"IF(O31>70%,\"check your numbers!!!\",IF(O31<0,\"check your numbers!!!\",\"\"))","v":""}]
[]
[null,"Data collection notes (double-click to enter text):"]
[]
[]
[]
[]
[]
[]
[]
[]
[]
[]
[]
[]
[]
[]
[]
[]
[]
[]
[]
[]
[]
[]
[]
[]
[]
[]
[]
[]
[]
[]
[]
[]
[null,null,"JAN","FEB","MAR","APRIL","MAY","JUNE","JULY","AUG","SEPT","OCT ","NOV","DEC"]
["Total Water Produced and Purchased (TP)",null,{"$f":"C8","v":0},0,0,0,0,0,0,0,0,0,0,0]
["Total Authorized Consumption (AC)",null,{"$f":"C29","v":0},0,0,0,0,0,0,0,0,0,0,0]

{"sheet":"2024","index":3,"n_rows":69,"n_cols":17,"rows_kept":69,"cut":false,"hidden":false,"merged":[[14,0,14,1],[2,0,2,1],[2,2,2,8],[4,0,4,1],[5,0,5,1],[6,0,6,1],[7,0,7,1],[7,16,9,19],[10,0,10,1],[11,0,11,1],[12,0,12,1],[13,0,13,1],[28,16,30,19],[29,0,29,1],[30,0,30,1],[34,1,42,14],[26,0,26,1],[2,10,2,13],[67,0,67,1],[68,0,68,1],[27,0,27,1],[28,0,28,1],[15,0,15,1],[16,0,16,1],[17,0,17,1],[18,0,18,1],[19,0,19,1],[20,0,20,1],[21,0,21,1],[22,0,22,1],[23,0,23,1],[24,0,24,1],[25,0,25,1]]}
[]
["Distribution System Leakage (DSL) Data Collection Tool - Reporting Year 2024"]
["Instructions",null,"Report Units in gallons",null,null,null,null,null,null,null,"Scroll down to see Monthly Chart for this year"]
["Water Volume Entering Distribution System:"]
[null,null,"JAN","FEB","MAR","APRIL","MAY","JUNE","JULY","AUG","SEPT","OCT ","NOV","DEC","TOTAL"]
["Total Volume Produced",null,null,null,null,null,null,null,null,null,null,null,null,null,{"$f":"SUM(C6:N6)","v":0}]
["Total Volume Purchased",null,null,null,null,null,null,null,null,null,null,null,null,null,{"$f":"SUM(C7:N7)","v":0}]
["Total Water Produced and Purchased (TP)",null,{"$f":"SUM(C6:C7)","v":0},{"$f":"SUM(D6:D7)","v":0},0,0,0,0,0,0,0,0,0,0,{"$f":"SUM(O6:O7)","v":0},null,"Report this value to DOH each year in the WUE reporting database. Convert to gallons."]
[]
["Total Volume Consumed:"]
[null,null,"JAN","FEB","MAR","APRIL","MAY","JUNE","JULY","AUG","SEPT","OCT ","NOV","DEC","TOTAL"]
["Water Volume Metered (billed and unbilled):",null,{"$f":"SUM(C13:C19)","v":0},{"$f":"SUM(D13:D19)","v":0},0,0,0,0,0,0,0,0,0,0,{"$f":"SUM(C12:N12)","v":0}]
["Single-family Residential","Single -",null,null,null,null,null,null,null,null,null,null,null,null,{"$f":"SUM(C13:N13)","v":0}]
["Multi-family Residential","Total Water Produced and Purchased (TP)",null,null,null,null,null,null,null,null,null,null,null,null,0]
["Industrial/Commercial/ Institutional",null,null,null,null,null,null,null,null,null,null,null,null,null,0]
["Other ","Other",null,null,null,null,null,null,null,null,null,null,null,null,0]
["Other ","Other",null,null,null,null,null,null,null,null,null,null,null,null,0]
["Other ","Other",null,null,null,null,null,null,null,null,null,null,null,null,0]
["Other ","Other",null,null,null,null,null,null,null,null,null,null,null,null,0]
["Exported Water",null,null,null,null,null,null,null,null,null,null,null,null,null,0]
["Estimated Authorized Uses (may be unbilled and unmetered)",null,{"$f":"SUM(C22:C28)","v":0},{"$f":"SUM(D22:D28)","v":0},0,0,0,0,0,0,0,0,0,0,0]
["Utility Flushing/Tank Cleaning",null,null,null,null,null,null,null,null,null,null,null,null,null,0]
["Fire Fighting/Training",null,null,null,null,null,null,null,null,null,null,null,null,null,0]
["Storm or Sewer Cleaning",null,null,null,null,null,null,null,null,null,null,null,null,null,0]
["Other ","Other",null,null,null,null,null,null,null,null,null,null,null,null,0]
["Other ","Other",null,null,null,null,null,null,null,null,null,null,null,null,0]
["Other ","Other",null,null,null,null,null,null,null,null,null,null,null,null,0]
["Other ","Other",null,null,null,null,null,null,null,null,null,null,null,null,0]
["Total Authorized Consumption (AC)",null,{"$f":"SUM(C12,C20,C21)","v":0},{"$f":"SUM(D12,D20,D21)","v":0},0,0,0,0,0,0,0,0,0,0,0,null,"Report this value to DOH each year in the WUE reporting database. Convert to gallons."]
["Total Volume DSL",null,{"$f":"C8-C29","v":0},{"$f":"D8-D29","v":0},{"$f":"E8-E29","v":0},0,0,0,0,0,0,0,0,0,{"$f":"O8-O29","v":0}]
["Percent DSL",null,{"$f":"IF(C8=0,0,(C8-C29)/C8)","v":0},0,0,0,0,0,0,0,0,0,0,0,{"$f":"IF(O8=0,0,(O8-O29)/O8)","v":0}]
[null,null,{"$f":"IF(C31>70%,\"check your numbers!!!\",IF(C31<0,\"check your numbers!!!\",\"\"))","v":""},{"$f":"IF(D31>70%,\"check your numbers!!!\",IF(D31<0,\"check your numbers!!!\",\"\"))","v":""},"","","","","","","","","",{"$f":"IF(N31>70%,\"check your numbers!!!\",IF(N31<0,\"check your numbers!!!\",\"\"))","v":""},{"$f":"IF(O31>70%,\"check your numbers!!!\",IF(O31<0,\"check your numbers!!!\",\"\"))","v":""}]
[]
[null,"Data collection notes (double-click to enter text):"]
[]
[]
[]
[]
[]
[]
[]
[]
[]
[]
[]
[]
[]
[]
[]
[]
[]
[]
[]
[]
[]
[]
[]
[]
[]
[]
[]
[]
[]
[]
[]
[]
[null,null,"JAN","FEB","MAR","APRIL","MAY","JUNE","JULY","AUG","SEPT","OCT ","NOV","DEC"]
["Total Water Produced and Purchased (TP)",null,{"$f":"C8","v":0},0,0,0,0,0,0,0,0,0,0,0]
["Total Authorized Consumption (AC)",null,{"$f":"C29","v":0},0,0,0,0,0,0,0,0,0,0,0]

{"sheet":"2025","index":4,"n_rows":69,"n_cols":17,"rows_kept":69,"cut":false,"hidden":false,"merged":[[14,0,14,1],[2,0,2,1],[2,2,2,8],[4,0,4,1],[5,0,5,1],[6,0,6,1],[7,0,7,1],[7,16,9,19],[10,0,10,1],[11,0,11,1],[12,0,12,1],[13,0,13,1],[28,16,30,19],[29,0,29,1],[30,0,30,1],[34,1,42,14],[26,0,26,1],[2,10,2,13],[67,0,67,1],[68,0,68,1],[27,0,27,1],[28,0,28,1],[15,0,15,1],[16,0,16,1],[17,0,17,1],[18,0,18,1],[19,0,19,1],[20,0,20,1],[21,0,21,1],[22,0,22,1],[23,0,23,1],[24,0,24,1],[25,0,25,1]]}
[]
["Distribution System Leakage (DSL) Data Collection Tool - Reporting Year 2025"]
["Instructions",null,"Report Units in gallons",null,null,null,null,null,null,null,"Scroll down to see Monthly Chart for this year"]
["Water Volume Entering Distribution System:"]
[null,null,"JAN","FEB","MAR","APRIL","MAY","JUNE","JULY","AUG","SEPT","OCT ","NOV","DEC","TOTAL"]
["Total Volume Produced",null,null,null,null,null,null,null,null,null,null,null,null,null,{"$f":"SUM(C6:N6)","v":0}]
["Total Volume Purchased",null,null,null,null,null,null,null,null,null,null,null,null,null,{"$f":"SUM(C7:N7)","v":0}]
["Total Water Produced and Purchased (TP)",null,{"$f":"SUM(C6:C7)","v":0},{"$f":"SUM(D6:D7)","v":0},0,0,0,0,0,0,0,0,0,0,{"$f":"SUM(O6:O7)","v":0},null,"Report this value to DOH each year in the WUE reporting database. Convert to gallons."]
[]
["Total Volume Consumed:"]
[null,null,"JAN","FEB","MAR","APRIL","MAY","JUNE","JULY","AUG","SEPT","OCT ","NOV","DEC","TOTAL"]
["Water Volume Metered (billed and unbilled):",null,{"$f":"SUM(C13:C19)","v":0},{"$f":"SUM(D13:D19)","v":0},0,0,0,0,0,0,0,0,0,0,{"$f":"SUM(C12:N12)","v":0}]
["Single-family Residential","Single -",null,null,null,null,null,null,null,null,null,null,null,null,{"$f":"SUM(C13:N13)","v":0}]
["Multi-family Residential","Total Water Produced and Purchased (TP)",null,null,null,null,null,null,null,null,null,null,null,null,0]
["Industrial/Commercial/ Institutional",null,null,null,null,null,null,null,null,null,null,null,null,null,0]
["Other ","Other",null,null,null,null,null,null,null,null,null,null,null,null,0]
["Other ","Other",null,null,null,null,null,null,null,null,null,null,null,null,0]
["Other ","Other",null,null,null,null,null,null,null,null,null,null,null,null,0]
["Other ","Other",null,null,null,null,null,null,null,null,null,null,null,null,0]
["Exported Water",null,null,null,null,null,null,null,null,null,null,null,null,null,0]
["Estimated Authorized Uses (may be unbilled and unmetered)",null,{"$f":"SUM(C22:C28)","v":0},{"$f":"SUM(D22:D28)","v":0},0,0,0,0,0,0,0,0,0,0,0]
["Utility Flushing/Tank Cleaning",null,null,null,null,null,null,null,null,null,null,null,null,null,0]
["Fire Fighting/Training",null,null,null,null,null,null,null,null,null,null,null,null,null,0]
["Storm or Sewer Cleaning",null,null,null,null,null,null,null,null,null,null,null,null,null,0]
["Other ","Other",null,null,null,null,null,null,null,null,null,null,null,null,0]
["Other ","Other",null,null,null,null,null,null,null,null,null,null,null,null,0]
["Other ","Other",null,null,null,null,null,null,null,null,null,null,null,null,0]
["Other ","Other",null,null,null,null,null,null,null,null,null,null,null,null,0]
["Total Authorized Consumption (AC)",null,{"$f":"SUM(C12,C20,C21)","v":0},{"$f":"SUM(D12,D20,D21)","v":0},0,0,0,0,0,0,0,0,0,0,0,null,"Report this value to DOH each year in the WUE reporting database. Convert to gallons."]
["Total Volume DSL",null,{"$f":"C8-C29","v":0},{"$f":"D8-D29","v":0},{"$f":"E8-E29","v":0},0,0,0,0,0,0,0,0,0,{"$f":"O8-O29","v":0}]
["Percent DSL",null,{"$f":"IF(C8=0,0,(C8-C29)/C8)","v":0},0,0,0,0,0,0,0,0,0,0,0,{"$f":"IF(O8=0,0,(O8-O29)/O8)","v":0}]
[null,null,{"$f":"IF(C31>70%,\"check your numbers!!!\",IF(C31<0,\"check your numbers!!!\",\"\"))","v":""},{"$f":"IF(D31>70%,\"check your numbers!!!\",IF(D31<0,\"check your numbers!!!\",\"\"))","v":""},"","","","","","","","","",{"$f":"IF(N31>70%,\"check your numbers!!!\",IF(N31<0,\"check your numbers!!!\",\"\"))","v":""},{"$f":"IF(O31>70%,\"check your numbers!!!\",IF(O31<0,\"check your numbers!!!\",\"\"))","v":""}]
[]
[null,"Data collection notes (double-click to enter text):"]
[]
[]
[]
[]
[]
[]
[]
[]
[]
[]
[]
[]
[]
[]
[]
[]
[]
[]
[]
[]
[]
[]
[]
[]
[]
[]
[]
[]
[]
[]
[]
[]
[null,null,"JAN","FEB","MAR","APRIL","MAY","JUNE","JULY","AUG","SEPT","OCT ","NOV","DEC"]
["Total Water Produced and Purchased (TP)",null,{"$f":"C8","v":0},0,0,0,0,0,0,0,0,0,0,0]
["Total Authorized Consumption (AC)",null,{"$f":"C29","v":0},0,0,0,0,0,0,0,0,0,0,0]

{"sheet":"2026","index":5,"n_rows":69,"n_cols":17,"rows_kept":69,"cut":false,"hidden":false,"merged":[[14,0,14,1],[2,0,2,1],[2,2,2,8],[4,0,4,1],[5,0,5,1],[6,0,6,1],[7,0,7,1],[7,16,9,19],[10,0,10,1],[11,0,11,1],[12,0,12,1],[13,0,13,1],[28,16,30,19],[29,0,29,1],[30,0,30,1],[34,1,42,14],[26,0,26,1],[2,10,2,13],[67,0,67,1],[68,0,68,1],[27,0,27,1],[28,0,28,1],[15,0,15,1],[16,0,16,1],[17,0,17,1],[18,0,18,1],[19,0,19,1],[20,0,20,1],[21,0,21,1],[22,0,22,1],[23,0,23,1],[24,0,24,1],[25,0,25,1]]}
[]
["Distribution System Leakage (DSL) Data Collection Tool - Reporting Year 2026"]
["Instructions",null,"Report Units in gallons",null,null,null,null,null,null,null,"Scroll down to see Monthly Chart for this year"]
["Water Volume Entering Distribution System:"]
[null,null,"JAN","FEB","MAR","APRIL","MAY","JUNE","JULY","AUG","SEPT","OCT ","NOV","DEC","TOTAL"]
["Total Volume Produced",null,null,null,null,null,null,null,null,null,null,null,null,null,{"$f":"SUM(C6:N6)","v":0}]
["Total Volume Purchased",null,null,null,null,null,null,null,null,null,null,null,null,null,{"$f":"SUM(C7:N7)","v":0}]
["Total Water Produced and Purchased (TP)",null,{"$f":"SUM(C6:C7)","v":0},{"$f":"SUM(D6:D7)","v":0},0,0,0,0,0,0,0,0,0,0,{"$f":"SUM(O6:O7)","v":0},null,"Report this value to DOH each year in the WUE reporting database. Convert to gallons."]
[]
["Total Volume Consumed:"]
[null,null,"JAN","FEB","MAR","APRIL","MAY","JUNE","JULY","AUG","SEPT","OCT ","NOV","DEC","TOTAL"]
["Water Volume Metered (billed and unbilled):",null,{"$f":"SUM(C13:C19)","v":0},{"$f":"SUM(D13:D19)","v":0},0,0,0,0,0,0,0,0,0,0,{"$f":"SUM(C12:N12)","v":0}]
["Single-family Residential","Single -",null,null,null,null,null,null,null,null,null,null,null,null,{"$f":"SUM(C13:N13)","v":0}]
["Multi-family Residential","Total Water Produced and Purchased (TP)",null,null,null,null,null,null,null,null,null,null,null,null,0]
["Industrial/Commercial/ Institutional",null,null,null,null,null,null,null,null,null,null,null,null,null,0]
["Other ","Other",null,null,null,null,null,null,null,null,null,null,null,null,0]
["Other ","Other",null,null,null,null,null,null,null,null,null,null,null,null,0]
["Other ","Other",null,null,null,null,null,null,null,null,null,null,null,null,0]
["Other ","Other",null,null,null,null,null,null,null,null,null,null,null,null,0]
["Exported Water",null,null,null,null,null,null,null,null,null,null,null,null,null,0]
["Estimated Authorized Uses (may be unbilled and unmetered)",null,{"$f":"SUM(C22:C28)","v":0},{"$f":"SUM(D22:D28)","v":0},0,0,0,0,0,0,0,0,0,0,0]
["Utility Flushing/Tank Cleaning",null,null,null,null,null,null,null,null,null,null,null,null,null,0]
["Fire Fighting/Training",null,null,null,null,null,null,null,null,null,null,null,null,null,{"$f":"SUM(C23:N23)","v":0}]
["Storm or Sewer Cleaning",null,null,null,null,null,null,null,null,null,null,null,null,null,0]
["Other ","Other",null,null,null,null,null,null,null,null,null,null,null,null,0]
["Other ","Other",null,null,null,null,null,null,null,null,null,null,null,null,0]
["Other ","Other",null,null,null,null,null,null,null,null,null,null,null,null,0]
["Other ","Other",null,null,null,null,null,null,null,null,null,null,null,null,0]
["Total Authorized Consumption (AC)",null,{"$f":"SUM(C12,C20,C21)","v":0},{"$f":"SUM(D12,D20,D21)","v":0},0,0,0,0,0,0,0,0,0,0,0,null,"Report this value to DOH each year in the WUE reporting database. Convert to gallons."]
["Total Volume DSL",null,{"$f":"C8-C29","v":0},{"$f":"D8-D29","v":0},{"$f":"E8-E29","v":0},0,0,0,0,0,0,0,0,0,{"$f":"O8-O29","v":0}]
["Percent DSL",null,{"$f":"IF(C8=0,0,(C8-C29)/C8)","v":0},0,0,0,0,0,0,0,0,0,0,0,{"$f":"IF(O8=0,0,(O8-O29)/O8)","v":0}]
[null,null,{"$f":"IF(C31>70%,\"check your numbers!!!\",IF(C31<0,\"check your numbers!!!\",\"\"))","v":""},{"$f":"IF(D31>70%,\"check your numbers!!!\",IF(D31<0,\"check your numbers!!!\",\"\"))","v":""},"","","","","","","","","",{"$f":"IF(N31>70%,\"check your numbers!!!\",IF(N31<0,\"check your numbers!!!\",\"\"))","v":""},{"$f":"IF(O31>70%,\"check your numbers!!!\",IF(O31<0,\"check your numbers!!!\",\"\"))","v":""}]
[]
[null,"Data collection notes (double-click to enter text):"]
[]
[]
[]
[]
[]
[]
[]
[]
[]
[]
[]
[]
[]
[]
[]
[]
[]
[]
[]
[]
[]
[]
[]
[]
[]
[]
[]
[]
[]
[]
[]
[]
[null,null,"JAN","FEB","MAR","APRIL","MAY","JUNE","JULY","AUG","SEPT","OCT ","NOV","DEC"]
["Total Water Produced and Purchased (TP)",null,{"$f":"C8","v":0},0,0,0,0,0,0,0,0,0,0,0]
["Total Authorized Consumption (AC)",null,{"$f":"C29","v":0},0,0,0,0,0,0,0,0,0,0,0]

{"sheet":"2027","index":6,"n_rows":69,"n_cols":17,"rows_kept":69,"cut":false,"hidden":false,"merged":[[14,0,14,1],[2,0,2,1],[2,2,2,8],[4,0,4,1],[5,0,5,1],[6,0,6,1],[7,0,7,1],[7,16,9,19],[10,0,10,1],[11,0,11,1],[12,0,12,1],[13,0,13,1],[28,16,30,19],[29,0,29,1],[30,0,30,1],[34,1,42,14],[26,0,26,1],[2,10,2,13],[67,0,67,1],[68,0,68,1],[27,0,27,1],[28,0,28,1],[15,0,15,1],[16,0,16,1],[17,0,17,1],[18,0,18,1],[19,0,19,1],[20,0,20,1],[21,0,21,1],[22,0,22,1],[23,0,23,1],[24,0,24,1],[25,0,25,1]]}
[]
["Distribution System Leakage (DSL) Data Collection Tool - Reporting Year 2027"]
["Instructions",null,"Report Units in gallons",null,null,null,null,null,null,null,"Scroll down to see Monthly Chart for this year"]
["Water Volume Entering Distribution System:"]
[null,null,"JAN","FEB","MAR","APRIL","MAY","JUNE","JULY","AUG","SEPT","OCT ","NOV","DEC","TOTAL"]
["Total Volume Produced",null,null,null,null,null,null,null,null,null,null,null,null,null,{"$f":"SUM(C6:N6)","v":0}]
["Total Volume Purchased",null,null,null,null,null,null,null,null,null,null,null,null,null,{"$f":"SUM(C7:N7)","v":0}]
["Total Water Produced and Purchased (TP)",null,{"$f":"SUM(C6:C7)","v":0},{"$f":"SUM(D6:D7)","v":0},0,0,0,0,0,0,0,0,0,0,{"$f":"SUM(O6:O7)","v":0},null,"Report this value to DOH each year in the WUE reporting database. Convert to gallons."]
[]
["Total Volume Consumed:"]
[null,null,"JAN","FEB","MAR","APRIL","MAY","JUNE","JULY","AUG","SEPT","OCT ","NOV","DEC","TOTAL"]
["Water Volume Metered (billed and unbilled):",null,{"$f":"SUM(C13:C19)","v":0},{"$f":"SUM(D13:D19)","v":0},0,0,0,0,0,0,0,0,0,0,{"$f":"SUM(C12:N12)","v":0}]
["Single-family Residential","Single -",null,null,null,null,null,null,null,null,null,null,null,null,{"$f":"SUM(C13:N13)","v":0}]
["Multi-family Residential","Total Water Produced and Purchased (TP)",null,null,null,null,null,null,null,null,null,null,null,null,0]
["Industrial/Commercial/ Institutional",null,null,null,null,null,null,null,null,null,null,null,null,null,0]
["Other ","Other",null,null,null,null,null,null,null,null,null,null,null,null,0]
["Other ","Other",null,null,null,null,null,null,null,null,null,null,null,null,0]
["Other ","Other",null,null,null,null,null,null,null,null,null,null,null,null,0]
["Other ","Other",null,null,null,null,null,null,null,null,null,null,null,null,0]
["Exported Water",null,null,null,null,null,null,null,null,null,null,null,null,null,0]
["Estimated Authorized Uses (may be unbilled and unmetered)",null,{"$f":"SUM(C22:C28)","v":0},{"$f":"SUM(D22:D28)","v":0},0,0,0,0,0,0,0,0,0,0,0]
["Utility Flushing/Tank Cleaning",null,null,null,null,null,null,null,null,null,null,null,null,null,0]
["Fire Fighting/Training",null,null,null,null,null,null,null,null,null,null,null,null,null,0]
["Storm or Sewer Cleaning",null,null,null,null,null,null,null,null,null,null,null,null,null,0]
["Other ","Other",null,null,null,null,null,null,null,null,null,null,null,null,0]
["Other ","Other",null,null,null,null,null,null,null,null,null,null,null,null,0]
["Other ","Other",null,null,null,null,null,null,null,null,null,null,null,null,0]
["Other ","Other",null,null,null,null,null,null,null,null,null,null,null,null,0]
["Total Authorized Consumption (AC)",null,{"$f":"SUM(C12,C20,C21)","v":0},{"$f":"SUM(D12,D20,D21)","v":0},0,0,0,0,0,0,0,0,0,0,0,null,"Report this value to DOH each year in the WUE reporting database. Convert to gallons."]
["Total Volume DSL",null,{"$f":"C8-C29","v":0},{"$f":"D8-D29","v":0},{"$f":"E8-E29","v":0},0,0,0,0,0,0,0,0,0,{"$f":"O8-O29","v":0}]
["Percent DSL",null,{"$f":"IF(C8=0,0,(C8-C29)/C8)","v":0},0,0,0,0,0,0,0,0,0,0,0,{"$f":"IF(O8=0,0,(O8-O29)/O8)","v":0}]
[null,null,{"$f":"IF(C31>70%,\"check your numbers!!!\",IF(C31<0,\"check your numbers!!!\",\"\"))","v":""},{"$f":"IF(D31>70%,\"check your numbers!!!\",IF(D31<0,\"check your numbers!!!\",\"\"))","v":""},"","","","","","","","","",{"$f":"IF(N31>70%,\"check your numbers!!!\",IF(N31<0,\"check your numbers!!!\",\"\"))","v":""},{"$f":"IF(O31>70%,\"check your numbers!!!\",IF(O31<0,\"check your numbers!!!\",\"\"))","v":""}]
[]
[null,"Data collection notes (double-click to enter text):"]
[]
[]
[]
[]
[]
[]
[]
[]
[]
[]
[]
[]
[]
[]
[]
[]
[]
[]
[]
[]
[]
[]
[]
[]
[]
[]
[]
[]
[]
[]
[]
[]
[null,null,"JAN","FEB","MAR","APRIL","MAY","JUNE","JULY","AUG","SEPT","OCT ","NOV","DEC"]
["Total Water Produced and Purchased (TP)",null,{"$f":"C8","v":0},0,0,0,0,0,0,0,0,0,0,0]
["Total Authorized Consumption (AC)",null,{"$f":"C29","v":0},0,0,0,0,0,0,0,0,0,0,0]

{"sheet":"2028","index":7,"n_rows":69,"n_cols":17,"rows_kept":69,"cut":false,"hidden":false,"merged":[[14,0,14,1],[2,0,2,1],[2,2,2,8],[4,0,4,1],[5,0,5,1],[6,0,6,1],[7,0,7,1],[7,16,9,19],[10,0,10,1],[11,0,11,1],[12,0,12,1],[13,0,13,1],[28,16,30,19],[29,0,29,1],[30,0,30,1],[34,1,42,14],[26,0,26,1],[2,10,2,13],[67,0,67,1],[68,0,68,1],[27,0,27,1],[28,0,28,1],[15,0,15,1],[16,0,16,1],[17,0,17,1],[18,0,18,1],[19,0,19,1],[20,0,20,1],[21,0,21,1],[22,0,22,1],[23,0,23,1],[24,0,24,1],[25,0,25,1]]}
[]
["Distribution System Leakage (DSL) Data Collection Tool - Reporting Year 2028"]
["Instructions",null,"Report Units in gallons",null,null,null,null,null,null,null,"Scroll down to see Monthly Chart for this year"]
["Water Volume Entering Distribution System:"]
[null,null,"JAN","FEB","MAR","APRIL","MAY","JUNE","JULY","AUG","SEPT","OCT ","NOV","DEC","TOTAL"]
["Total Volume Produced",null,null,null,null,null,null,null,null,null,null,null,null,null,{"$f":"SUM(C6:N6)","v":0}]
["Total Volume Purchased",null,null,null,null,null,null,null,null,null,null,null,null,null,{"$f":"SUM(C7:N7)","v":0}]
["Total Water Produced and Purchased (TP)",null,{"$f":"SUM(C6:C7)","v":0},{"$f":"SUM(D6:D7)","v":0},0,0,0,0,0,0,0,0,0,0,{"$f":"SUM(O6:O7)","v":0},null,"Report this value to DOH each year in the WUE reporting database. Convert to gallons."]
[]
["Total Volume Consumed:"]
[null,null,"JAN","FEB","MAR","APRIL","MAY","JUNE","JULY","AUG","SEPT","OCT ","NOV","DEC","TOTAL"]
["Water Volume Metered (billed and unbilled):",null,{"$f":"SUM(C13:C19)","v":0},{"$f":"SUM(D13:D19)","v":0},0,0,0,0,0,0,0,0,0,0,{"$f":"SUM(C12:N12)","v":0}]
["Single-family Residential","Single -",null,null,null,null,null,null,null,null,null,null,null,null,{"$f":"SUM(C13:N13)","v":0}]
["Multi-family Residential","Total Water Produced and Purchased (TP)",null,null,null,null,null,null,null,null,null,null,null,null,0]
["Industrial/Commercial/ Institutional",null,null,null,null,null,null,null,null,null,null,null,null,null,0]
["Other ","Other",null,null,null,null,null,null,null,null,null,null,null,null,0]
["Other ","Other",null,null,null,null,null,null,null,null,null,null,null,null,0]
["Other ","Other",null,null,null,null,null,null,null,null,null,null,null,null,0]
["Other ","Other",null,null,null,null,null,null,null,null,null,null,null,null,0]
["Exported Water",null,null,null,null,null,null,null,null,null,null,null,null,null,0]
["Estimated Authorized Uses (may be unbilled and unmetered)",null,{"$f":"SUM(C22:C28)","v":0},{"$f":"SUM(D22:D28)","v":0},0,0,0,0,0,0,0,0,0,0,0]
["Utility Flushing/Tank Cleaning",null,null,null,null,null,null,null,null,null,null,null,null,null,0]
["Fire Fighting/Training",null,null,null,null,null,null,null,null,null,null,null,null,null,0]
["Storm or Sewer Cleaning",null,null,null,null,null,null,null,null,null,null,null,null,null,0]
["Other ","Other",null,null,null,null,null,null,null,null,null,null,null,null,0]
["Other ","Other",null,null,null,null,null,null,null,null,null,null,null,null,0]
["Other ","Other",null,null,null,null,null,null,null,null,null,null,null,null,0]
["Other ","Other",null,null,null,null,null,null,null,null,null,null,null,null,0]
["Total Authorized Consumption (AC)",null,{"$f":"SUM(C12,C20,C21)","v":0},{"$f":"SUM(D12,D20,D21)","v":0},0,0,0,0,0,0,0,0,0,0,0,null,"Report this value to DOH each year in the WUE reporting database. Convert to gallons."]
["Total Volume DSL",null,{"$f":"C8-C29","v":0},{"$f":"D8-D29","v":0},{"$f":"E8-E29","v":0},0,0,0,0,0,0,0,0,0,{"$f":"O8-O29","v":0}]
["Percent DSL",null,{"$f":"IF(C8=0,0,(C8-C29)/C8)","v":0},0,0,0,0,0,0,0,0,0,0,0,{"$f":"IF(O8=0,0,(O8-O29)/O8)","v":0}]
[null,null,{"$f":"IF(C31>70%,\"check your numbers!!!\",IF(C31<0,\"check your numbers!!!\",\"\"))","v":""},{"$f":"IF(D31>70%,\"check your numbers!!!\",IF(D31<0,\"check your numbers!!!\",\"\"))","v":""},"","","","","","","","","",{"$f":"IF(N31>70%,\"check your numbers!!!\",IF(N31<0,\"check your numbers!!!\",\"\"))","v":""},{"$f":"IF(O31>70%,\"check your numbers!!!\",IF(O31<0,\"check your numbers!!!\",\"\"))","v":""}]
[]
[null,"Data collection notes (double-click to enter text):"]
[]
[]
[]
[]
[]
[]
[]
[]
[]
[]
[]
[]
[]
[]
[]
[]
[]
[]
[]
[]
[]
[]
[]
[]
[]
[]
[]
[]
[]
[]
[]
[]
[null,null,"JAN","FEB","MAR","APRIL","MAY","JUNE","JULY","AUG","SEPT","OCT ","NOV","DEC"]
["Total Water Produced and Purchased (TP)",null,{"$f":"C8","v":0},0,0,0,0,0,0,0,0,0,0,0]
["Total Authorized Consumption (AC)",null,{"$f":"C29","v":0},0,0,0,0,0,0,0,0,0,0,0]

{"sheet":"2029","index":8,"n_rows":69,"n_cols":17,"rows_kept":69,"cut":false,"hidden":false,"merged":[[14,0,14,1],[2,0,2,1],[2,2,2,8],[4,0,4,1],[5,0,5,1],[6,0,6,1],[7,0,7,1],[7,16,9,19],[10,0,10,1],[11,0,11,1],[12,0,12,1],[13,0,13,1],[28,16,30,19],[29,0,29,1],[30,0,30,1],[34,1,42,14],[26,0,26,1],[2,10,2,13],[67,0,67,1],[68,0,68,1],[27,0,27,1],[28,0,28,1],[15,0,15,1],[16,0,16,1],[17,0,17,1],[18,0,18,1],[19,0,19,1],[20,0,20,1],[21,0,21,1],[22,0,22,1],[23,0,23,1],[24,0,24,1],[25,0,25,1]]}
[]
["Distribution System Leakage (DSL) Data Collection Tool - Reporting Year 2029"]
["Instructions",null,"Report Units in gallons",null,null,null,null,null,null,null,"Scroll down to see Monthly Chart for this year"]
["Water Volume Entering Distribution System:"]
[null,null,"JAN","FEB","MAR","APRIL","MAY","JUNE","JULY","AUG","SEPT","OCT ","NOV","DEC","TOTAL"]
["Total Volume Produced",null,null,null,null,null,null,null,null,null,null,null,null,null,{"$f":"SUM(C6:N6)","v":0}]
["Total Volume Purchased",null,null,null,null,null,null,null,null,null,null,null,null,null,{"$f":"SUM(C7:N7)","v":0}]
["Total Water Produced and Purchased (TP)",null,{"$f":"SUM(C6:C7)","v":0},{"$f":"SUM(D6:D7)","v":0},0,0,0,0,0,0,0,0,0,0,{"$f":"SUM(O6:O7)","v":0},null,"Report this value to DOH each year in the WUE reporting database. Convert to gallons."]
[]
["Total Volume Consumed:"]
[null,null,"JAN","FEB","MAR","APRIL","MAY","JUNE","JULY","AUG","SEPT","OCT ","NOV","DEC","TOTAL"]
["Water Volume Metered (billed and unbilled):",null,{"$f":"SUM(C13:C19)","v":0},{"$f":"SUM(D13:D19)","v":0},0,0,0,0,0,0,0,0,0,0,{"$f":"SUM(C12:N12)","v":0}]
["Single-family Residential","Single -",null,null,null,null,null,null,null,null,null,null,null,null,{"$f":"SUM(C13:N13)","v":0}]
["Multi-family Residential","Total Water Produced and Purchased (TP)",null,null,null,null,null,null,null,null,null,null,null,null,0]
["Industrial/Commercial/ Institutional",null,null,null,null,null,null,null,null,null,null,null,null,null,0]
["Other ","Other",null,null,null,null,null,null,null,null,null,null,null,null,0]
["Other ","Other",null,null,null,null,null,null,null,null,null,null,null,null,0]
["Other ","Other",null,null,null,null,null,null,null,null,null,null,null,null,0]
["Other ","Other",null,null,null,null,null,null,null,null,null,null,null,null,0]
["Exported Water",null,null,null,null,null,null,null,null,null,null,null,null,null,0]
["Estimated Authorized Uses (may be unbilled and unmetered)",null,{"$f":"SUM(C22:C28)","v":0},{"$f":"SUM(D22:D28)","v":0},0,0,0,0,0,0,0,0,0,0,0]
["Utility Flushing/Tank Cleaning",null,null,null,null,null,null,null,null,null,null,null,null,null,0]
["Fire Fighting/Training",null,null,null,null,null,null,null,null,null,null,null,null,null,0]
["Storm or Sewer Cleaning",null,null,null,null,null,null,null,null,null,null,null,null,null,0]
["Other ","Other",null,null,null,null,null,null,null,null,null,null,null,null,0]
["Other ","Other",null,null,null,null,null,null,null,null,null,null,null,null,0]
["Other ","Other",null,null,null,null,null,null,null,null,null,null,null,null,0]
["Other ","Other",null,null,null,null,null,null,null,null,null,null,null,null,0]
["Total Authorized Consumption (AC)",null,{"$f":"SUM(C12,C20,C21)","v":0},{"$f":"SUM(D12,D20,D21)","v":0},0,0,0,0,0,0,0,0,0,0,0,null,"Report this value to DOH each year in the WUE reporting database. Convert to gallons."]
["Total Volume DSL",null,{"$f":"C8-C29","v":0},{"$f":"D8-D29","v":0},{"$f":"E8-E29","v":0},0,0,0,0,0,0,0,0,0,{"$f":"O8-O29","v":0}]
["Percent DSL",null,{"$f":"IF(C8=0,0,(C8-C29)/C8)","v":0},0,0,0,0,0,0,0,0,0,0,0,{"$f":"IF(O8=0,0,(O8-O29)/O8)","v":0}]
[null,null,{"$f":"IF(C31>70%,\"check your numbers!!!\",IF(C31<0,\"check your numbers!!!\",\"\"))","v":""},{"$f":"IF(D31>70%,\"check your numbers!!!\",IF(D31<0,\"check your numbers!!!\",\"\"))","v":""},"","","","","","","","","",{"$f":"IF(N31>70%,\"check your numbers!!!\",IF(N31<0,\"check your numbers!!!\",\"\"))","v":""},{"$f":"IF(O31>70%,\"check your numbers!!!\",IF(O31<0,\"check your numbers!!!\",\"\"))","v":""}]
[]
[null,"Data collection notes (double-click to enter text):"]
[]
[]
[]
[]
[]
[]
[]
[]
[]
[]
[]
[]
[]
[]
[]
[]
[]
[]
[]
[]
[]
[]
[]
[]
[]
[]
[]
[]
[]
[]
[]
[]
[null,null,"JAN","FEB","MAR","APRIL","MAY","JUNE","JULY","AUG","SEPT","OCT ","NOV","DEC"]
["Total Water Produced and Purchased (TP)",null,{"$f":"C8","v":0},0,0,0,0,0,0,0,0,0,0,0]
["Total Authorized Consumption (AC)",null,{"$f":"C29","v":0},{"$f":"D29","v":0},0,0,0,0,0,0,0,0,0,0]

{"sheet":"YearlyChart","index":9,"n_rows":10,"n_cols":9,"rows_kept":10,"cut":false,"hidden":false,"merged":[]}
[]
["Water Use Efficiency Annual Reporting  -  Year to Year Comparison"]
[]
[null,2022,2023,2024,2025,2026,2027,2028,2029]
["Total Water Produced and Purchased (TP)",{"$f":"'2022'!O8","v":0},{"$f":"'2023'!O8","v":0},{"$f":"'2024'!O8","v":0},{"$f":"'2025'!O8","v":0},{"$f":"'2026'!O8","v":0},{"$f":"'2027'!O8","v":0},{"$f":"'2028'!O8","v":0},{"$f":"'2029'!O8","v":0}]
["Total Authorized Consumption (AC)",{"$f":"'2022'!O29","v":0},{"$f":"'2023'!O29","v":0},{"$f":"'2024'!O29","v":0},{"$f":"'2025'!O29","v":0},{"$f":"'2026'!O29","v":0},{"$f":"'2027'!O29","v":0},{"$f":"'2028'!O29","v":0},{"$f":"'2029'!O29","v":0}]
[]
[null,2022,2023,2024,2025,2026,2027,2028,2029]
["Total Volume DSL",{"$f":"'2022'!O30","v":0},{"$f":"'2023'!O30","v":0},{"$f":"'2024'!O30","v":0},{"$f":"'2025'!O30","v":0},{"$f":"'2026'!O30","v":0},{"$f":"'2027'!O30","v":0},{"$f":"'2028'!O30","v":0},{"$f":"'2029'!O30","v":0}]
["Percent DSL",{"$f":"'2022'!O31","v":0},{"$f":"'2023'!O31","v":0},{"$f":"'2024'!O31","v":0},{"$f":"'2025'!O31","v":0},{"$f":"'2026'!O31","v":0},{"$f":"'2027'!O31","v":0},{"$f":"'2028'!O31","v":0},{"$f":"'2029'!O31","v":0}]